fUST/lending_fUST_20250414
["ID","MTS","AMOUNT","RATE_DAILY","PERIOD"]
[357960523,1744620642723,-500.0,0.00027397,2]
[357960524,1744620642732,-516.50612381,0.00027397,2]
[357960526,1744620642742,-1003.26,0.00027397,2]
[357960528,1744620642751,-262.56278554,0.00027397,2]
[357960530,1744620642761,-4690.01,0.00027397,2]
[357960532,1744620642770,-162.55267389,0.00027397,2]
[357960534,1744620642779,-500.0,0.00027397,2]
[357960536,1744620642789,-500.0,0.00027397,2]
[357960538,1744620642799,-500.0,0.00027397,2]
[357960539,1744620642808,-2252.61,0.00027397,2]
[357960540,1744620642818,-500.0,0.00027397,2]
[357960541,1744620642827,-1628.71,0.00027397,2]
[357960542,1744620642837,-500.0,0.00027397,2]
[357960543,1744620642847,-692.5,0.00027397,2]
[357960544,1744620642857,-896.89,0.00027397,2]
[357960545,1744620642868,-672.92,0.00027397,2]
[357960546,1744620642878,-834.82,0.00027397,2]
[357960547,1744620642890,-515.28473502,0.00027397,2]
[357960548,1744620642901,-500.0,0.00027397,2]
[357960549,1744620642911,-2153.24,0.00027397,2]
[357960550,1744620642921,-6513.74,0.00027397,2]
[357960551,1744620642932,-1172.79,0.00027397,2]
[357960552,1744620642942,-500.0,0.00027397,2]
[357960553,1744620642951,-2365.78,0.00027397,2]
[357960554,1744620642960,-508.96047445,0.00027397,2]
[357960555,1744620642970,-500.0,0.00027397,2]
[357960556,1744620642980,-500.0,0.00027397,2]
[357960557,1744620642989,-500.0,0.00027397,2]
[357960558,1744620642999,-500.0,0.00027397,2]
[357960559,1744620643009,-500.0,0.00027397,2]
[357960560,1744620643018,-500.0,0.00027397,2]
[357960561,1744620643028,-500.0,0.00027397,2]
[357960563,1744620643038,-588.83128525,0.00027397,2]
[357960565,1744620643048,-500.0,0.00027397,2]
[357960567,1744620643058,-500.0,0.00027397,2]
[357960569,1744620643067,-500.0,0.00027397,2]
[357960571,1744620643077,-6985.63,0.00027397,2]
[357960574,1744620643087,-500.0,0.00027397,2]
[357960576,1744620643097,-535.22882063,0.00027397,2]
[357960578,1744620643107,-500.0,0.00027397,2]
[357960579,1744620643116,-1205.61,0.00027397,2]
[357960582,1744620643127,-500.0,0.00027397,2]
[357960584,1744620643136,-500.0,0.00027397,2]
[357960586,1744620643146,-500.0,0.00027397,2]
[357960588,1744620643156,-286.683964,0.00027397,7]
[357960590,1744620643165,-286.683964,0.00027397,7]
[357960592,1744620643179,-286.683964,0.00027397,7]
[357960594,1744620643189,-286.683964,0.00027397,7]
[357960596,1744620643198,-500.0,0.00027397,2]
[357960598,1744620643208,-711.42,0.00027397,2]
[357960600,1744620643218,-286.683964,0.00027397,7]
[357960602,1744620643227,-286.683964,0.00027397,7]
[357960615,1744620643347,-286.683964,0.00027397,7]
[357960617,1744620643359,-286.683964,0.00027397,7]
[357960620,1744620643370,-500.0,0.00027397,2]
[357960622,1744620643380,-500.0,0.00027397,2]
[357960624,1744620643390,-500.0,0.00027397,2]
[357960626,1744620643400,-500.0,0.00027397,2]
[357960628,1744620643409,-500.0,0.00027397,2]
[357960629,1744620643418,-500.0,0.00027397,2]
[357960632,1744620643428,-500.0,0.00027397,2]
[357960634,1744620643438,-4303.06,0.00027397,2]
[357960636,1744620643447,-500.0,0.00027397,2]
[357960638,1744620643456,-586.17,0.00027397,2]
[357960640,1744620643466,-500.0,0.00027397,2]
[357960642,1744620643476,-500.0,0.00027397,2]
[357960644,1744620643486,-500.0,0.00027397,2]
[357960646,1744620643495,-500.0,0.00027397,2]
[357960648,1744620643505,-500.0,0.00027397,2]
[357960650,1744620643514,-503.11798546,0.00027397,2]
[357960652,1744620643523,-560.4,0.00027397,2]
[357960654,1744620643534,-500.0,0.00027397,2]
[357960656,1744620643543,-15878.16,0.00027397,2]
[357960658,1744620643553,-500.0,0.00027397,2]
[357960660,1744620643562,-500.0,0.00027397,2]
[357960662,1744620643571,-500.0,0.00027397,2]
[357960664,1744620643581,-661.82,0.00027397,2]
[357960666,1744620643590,-500.0,0.00027397,2]
[357960668,1744620643600,-500.0,0.00027397,2]
[357960670,1744620643609,-500.0,0.00027397,2]
[357960672,1744620643618,-500.0,0.00027397,2]
[357960674,1744620643627,-500.0,0.00027397,2]
[357960676,1744620643637,-500.0,0.00027397,2]
[357960678,1744620643647,-1805.29,0.00027397,2]
[357960680,1744620643656,-500.0,0.00027397,2]
[357960682,1744620643665,-544.17007002,0.00027397,2]
[357960684,1744620643675,-500.0,0.00027397,2]
[357960686,1744620643684,-500.0,0.00027397,2]
[357960688,1744620643694,-500.0,0.00027397,2]
[357960690,1744620643704,-505.51,0.00027397,2]
[357960692,1744620643714,-1533.25,0.00027397,2]
[357960693,1744620643724,-511.14770361,0.00027397,2]
[357960695,1744620643733,-500.0,0.00027397,2]
[357960697,1744620643742,-500.0,0.00027397,2]
[357960698,1744620643752,-1739.08,0.00027397,2]
[357960700,1744620643761,-15756.62,0.00027397,2]
[357960702,1744620643771,-500.0,0.00027397,2]
[357960704,1744620643781,-500.0,0.00027397,2]
[357960706,1744620643790,-772.89,0.00027397,2]
[357960708,1744620643800,-500.0,0.00027397,2]
[357960710,1744620643810,-500.0,0.00027397,2]
[357960712,1744620643819,-500.0,0.00027397,2]
[357960714,1744620643829,-637.48616331,0.00027397,2]
[357960716,1744620643839,-500.0,0.00027397,2]
[357960717,1744620643849,-2069.29,0.00027397,2]
[357960719,1744620643858,-1292.5,0.00027397,2]
[357960721,1744620643868,-991.727698,0.00027397,2]
[357960722,1744620643878,-991.727698,0.00027397,2]
[357960723,1744620643889,-991.727698,0.00027397,2]
[357960724,1744620643898,-991.727698,0.00027397,2]
[357960725,1744620643909,-2364.47,0.00027397,2]
[357960726,1744620643918,-888.0209347,0.00027397,2]
[357960727,1744620643943,-103.7067633,0.00027397,2]
[357960728,1744620643954,-718.45736032,0.00027397,2]
[357960741,1744620644168,-500.0,0.00024786,2]
[357960743,1744620644177,-80.70808335,0.00024786,2]
[357960745,1744620644189,-419.29191665,0.00024786,2]
[357960747,1744620644199,-500.0,0.00024786,2]
[357960749,1744620644208,-500.40948726,0.00024786,2]
[357960751,1744620644217,-172.81421337,0.00027396,2]
[357960753,1744620644229,-10.84892717,0.00027396,2]
[357960755,1744620644239,-273.27033768,0.00027397,2]
[357960757,1744620644248,-184.94156798,0.00027397,2]
[357960781,1744620644472,-566.832942,0.00027397,2]
[357960935,1744620646058,-176.69761266,0.00027396,2]
[357960936,1744620646069,-183.66314054,0.00027396,2]
[357960938,1744620646079,-239.95318802,0.00027397,2]
[357960940,1744620646089,-991.727698,0.00027397,2]
[357960942,1744620646099,-505.19986997,0.00027397,2]
[357960944,1744620646108,-500.0,0.00027397,2]
[357960946,1744620646118,-500.0,0.00027397,2]
[357960948,1744620646130,-317.01619075,0.00027397,2]
[357961535,1744621832388,-484.44514909,0.00024587,2]
[357961536,1744621832400,-515.55485091,0.00024587,2]
[357961537,1744621832410,-290.8630593,0.00025943,2]
[357961538,1744621832420,-708.4740063,0.00026028,2]
[357961539,1744621832430,-1003.9677628,0.00026138,2]
[357961540,1744621832440,-180.11166923,0.00026303,2]
[357961541,1744621832451,-433.20637551,0.000269,7]
[357961542,1744621832460,-300.0,0.00026998,2]
[357961543,1744621832470,-300.0,0.00026998,2]
[357961544,1744621832480,-500.0,0.00026999,2]
[357961545,1744621832489,-500.0,0.00026999,2]
[357961546,1744621832499,-500.0,0.00026999,2]
[357961547,1744621832509,-500.0,0.00026999,2]
[357961548,1744621832518,-385.52703123,0.00026999,2]
[357961549,1744621832528,-500.0,0.00026999,2]
[357961551,1744621832537,-500.0,0.00026999,2]
[357961552,1744621832546,-201.78926654,0.00026999,2]
[357961553,1744621832556,-500.0,0.00026999,2]
[357961554,1744621832565,-500.0,0.00026999,2]
[357961555,1744621832575,-500.0,0.00026999,2]
[357961556,1744621832584,-500.0,0.00026999,2]
[357961557,1744621832594,-500.0,0.00026999,2]
[357961558,1744621832605,-5327.26312152,0.00027,2]
[357961603,1744621838363,-7086.95415272,0.00027,2]
[357961605,1744621838373,-153.0,0.00027123,2]
[357961607,1744621838383,-153.0,0.00027123,2]
[357961609,1744621838393,-153.0,0.00027123,2]
[357961611,1744621838402,-153.0,0.00027123,2]
[357961613,1744621838411,-153.0,0.00027123,2]
[357961615,1744621838421,-433.20637547,0.00027348,7]
[357961617,1744621838430,-160.0,0.00027365,2]
[357961619,1744621838440,-355.63416494,0.00027373,2]
[357961621,1744621838449,-500.0,0.00027373,2]
[357961622,1744621838460,-163.55046518,0.00027373,2]
[357961624,1744621838470,-446.65900259,0.00027373,2]
[357961626,1744621838480,-583.10274552,0.00027373,2]
[357961628,1744621838489,-500.0,0.00027373,2]
[357961630,1744621838499,-500.0,0.00027373,2]
[357961633,1744621838509,-500.0,0.00027373,2]
[357961635,1744621838518,-500.0,0.00027373,2]
[357961637,1744621838528,-500.0,0.00027373,2]
[357961639,1744621838537,-500.0,0.00027373,2]
[357961641,1744621838547,-251.74833169,0.00027373,2]
[357961643,1744621838556,-500.0,0.00027373,2]
[357961645,1744621838566,-500.0,0.00027373,2]
[357961647,1744621838575,-500.0,0.00027386,2]
[357961649,1744621838585,-183.42491084,0.00027386,2]
[357961651,1744621838594,-190618.05994327,0.00027387,2]
[357961653,1744621838607,-589.34090973,0.00027387,2]
[357961655,1744621838616,-176.69761266,0.00027396,2]
[357961657,1744621838626,-183.66314054,0.00027396,2]
[357961659,1744621838635,-500.0,0.00027397,2]
[357961661,1744621838644,-500.0,0.00027397,2]
[357961663,1744621838654,-500.0,0.00027397,2]
[357961665,1744621838663,-500.0,0.00027397,2]
[357961667,1744621838673,-1000.0,0.00027397,2]
[357961669,1744621838683,-500.0,0.00027397,2]
[357961671,1744621838692,-500.0,0.00027397,2]
[357961673,1744621838707,-1000.0,0.00027397,3]
[357961675,1744621838717,-500.0,0.00027397,2]
[357961677,1744621838726,-500.0,0.00027397,2]
[357961679,1744621838740,-500.0,0.00027397,2]
[357961681,1744621838751,-500.0,0.00027397,2]
[357961683,1744621838760,-500.0,0.00027397,2]
[357961685,1744621838770,-500.0,0.00027397,2]
[357961688,1744621838782,-500.0,0.00027397,2]
[357961689,1744621838791,-500.0,0.00027397,2]
[357961691,1744621838801,-500.0,0.00027397,2]
[357961693,1744621838811,-500.0,0.00027397,2]
[357961710,1744621838961,-500.0,0.00027397,2]
[357961712,1744621838971,-500.0,0.00027397,2]
[357961714,1744621838981,-500.0,0.00027397,2]
[357961716,1744621838990,-500.0,0.00027397,2]
[357961718,1744621839000,-500.0,0.00027397,2]
[357961720,1744621839009,-870.15,0.00027397,2]
[357961722,1744621839019,-500.0,0.00027397,2]
[357961724,1744621839029,-500.0,0.00027397,2]
[357961726,1744621839038,-500.0,0.00027397,2]
[357961729,1744621839048,-500.0,0.00027397,2]
[357961731,1744621839058,-500.0,0.00027397,2]
[357961733,1744621839068,-568.64,0.00027397,2]
[357961735,1744621839077,-500.0,0.00027397,2]
[357961737,1744621839088,-500.0,0.00027397,2]
[357961739,1744621839098,-500.0,0.00027397,2]
[357961741,1744621839107,-500.0,0.00027397,2]
[357961743,1744621839117,-500.0,0.00027397,2]
[357961745,1744621839126,-500.0,0.00027397,2]
[357961747,1744621839136,-500.0,0.00027397,2]
[357961749,1744621839145,-500.0,0.00027397,2]
[357961751,1744621839154,-500.0,0.00027397,2]
[357961753,1744621839164,-500.0,0.00027397,2]
[357961755,1744621839174,-500.0,0.00027397,2]
[357961757,1744621839183,-538.42,0.00027397,2]
[357961759,1744621839193,-500.0,0.00027397,2]
[357961761,1744621839202,-500.0,0.00027397,2]
[357961763,1744621839211,-500.0,0.00027397,2]
[357961765,1744621839220,-500.0,0.00027397,2]
[357961767,1744621839228,-500.0,0.00027397,2]
[357961768,1744621839237,-500.0,0.00027397,2]
[357961770,1744621839247,-511.12204567,0.00027397,2]
[357961772,1744621839256,-500.0,0.00027397,2]
[357961774,1744621839264,-500.0,0.00027397,2]
[357961775,1744621839273,-500.0,0.00027397,2]
[357961776,1744621839281,-500.0,0.00027397,2]
[357961777,1744621839290,-500.0,0.00027397,2]
[357961778,1744621839300,-500.0,0.00027397,2]
[357961779,1744621839311,-517.55,0.00027397,2]
[357961780,1744621839320,-523.16,0.00027397,2]
[357961781,1744621839331,-500.0,0.00027397,2]
[357961782,1744621839340,-500.0,0.00027397,2]
[357961783,1744621839350,-500.0,0.00027397,2]
[357961784,1744621839359,-500.0,0.00027397,2]
[357961785,1744621839369,-258.41,0.00027397,2]
[357961786,1744621839379,-500.0,0.00027397,2]
[357961787,1744621839389,-500.0,0.00027397,2]
[357961788,1744621839399,-500.0,0.00027397,2]
[357961789,1744621839409,-500.0,0.00027397,2]
[357961790,1744621839419,-500.0,0.00027397,2]
[357961791,1744621839429,-500.0,0.00027397,2]
[357961792,1744621839438,-441.57765713,0.00027397,2]
[357961793,1744621839448,-1084.88,0.00027397,2]
[357961795,1744621839458,-500.0,0.00027397,2]
[357961797,1744621839467,-500.0,0.00027397,2]
[357961799,1744621839476,-500.0,0.00027397,2]
[357961801,1744621839486,-500.0,0.00027397,2]
[357961803,1744621839495,-625.36,0.00027397,2]
[357961805,1744621839504,-500.0,0.00027397,2]
[357961807,1744621839514,-500.0,0.00027397,2]
[357961809,1744621839523,-500.0,0.00027397,2]
[357961811,1744621839533,-500.0,0.00027397,2]
[357961813,1744621839542,-500.0,0.00027397,2]
[357961815,1744621839552,-647.6,0.00027397,2]
[357961817,1744621839561,-500.0,0.00027397,2]
[357961819,1744621839571,-690.88,0.00027397,2]
[357961821,1744621839579,-500.0,0.00027397,2]
[357961823,1744621839590,-500.0,0.00027397,2]
[357961825,1744621839599,-500.0,0.00027397,2]
[357961827,1744621839609,-500.0,0.00027397,2]
[357961829,1744621839619,-500.0,0.00027397,2]
[357961831,1744621839629,-1562.86,0.00027397,2]
[357961833,1744621839638,-780.3,0.00027397,2]
[357961835,1744621839647,-500.0,0.00027397,2]
[357961837,1744621839657,-500.0,0.00027397,2]
[357961839,1744621839666,-500.0,0.00027397,2]
[357961841,1744621839676,-1350.12,0.00027397,2]
[357961843,1744621839685,-500.0,0.00027397,2]
[357961845,1744621839695,-668.04,0.00027397,2]
[357961847,1744621839709,-500.0,0.00027397,2]
[357961849,1744621839718,-500.0,0.00027397,2]
[357961851,1744621839728,-500.0,0.00027397,2]
[357961853,1744621839737,-500.0,0.00027397,2]
[357961855,1744621839747,-500.0,0.00027397,2]
[357961857,1744621839757,-500.0,0.00027397,2]
[357961859,1744621839766,-500.0,0.00027397,2]
[357961861,1744621839778,-221.22644411,0.00027397,2]
[357961863,1744621839787,-500.0,0.00027397,2]
[357961865,1744621839797,-795.62,0.00027397,2]
[357961867,1744621839807,-500.0,0.00027397,2]
[357961869,1744621839816,-500.0,0.00027397,2]
[357961871,1744621839826,-500.0,0.00027397,2]
[357961874,1744621839836,-638.44919093,0.00027397,2]
[357961877,1744621839845,-500.0,0.00027397,2]
[357961880,1744621839855,-439.52019112,0.00027397,2]
[357961883,1744621839865,-500.0,0.00027397,2]
[357961887,1744621839876,-500.0,0.00027397,2]
[357961890,1744621839887,-500.0,0.00027397,2]
[357961893,1744621839897,-500.0,0.00027397,2]
[357961896,1744621839907,-500.0,0.00027397,2]
[357961899,1744621839917,-500.0,0.00027397,2]
[357961903,1744621839928,-500.0,0.00027397,2]
[357961906,1744621839938,-500.0,0.00027397,2]
[357961909,1744621839948,-1616.56,0.00027397,2]
[357961912,1744621839960,-683.43,0.00027397,2]
[357961915,1744621839971,-500.0,0.00027397,2]
[357961918,1744621839980,-500.0,0.00027397,2]
[357961921,1744621839991,-500.0,0.00027397,2]
[357961924,1744621840000,-1050.42,0.00027397,2]
[357961927,1744621840009,-593.36113927,0.00027397,2]
[357961930,1744621840019,-839.26,0.00027397,2]
[357961933,1744621840028,-500.0,0.00027397,2]
[357961936,1744621840038,-690.51,0.00027397,2]
[357961939,1744621840048,-500.0,0.00027397,2]
[357961942,1744621840058,-500.0,0.00027397,2]
[357961945,1744621840068,-500.0,0.00027397,2]
[357961948,1744621840077,-643.04,0.00027397,2]
[357961951,1744621840087,-500.0,0.00027397,2]
[357961954,1744621840097,-500.0,0.00027397,2]
[357961957,1744621840107,-500.0,0.00027397,2]
[357961960,1744621840116,-500.0,0.00027397,2]
[357961963,1744621840126,-503.830931,0.00027397,2]
[357961966,1744621840136,-665.75,0.00027397,2]
[357961969,1744621840146,-500.0,0.00027397,2]
[357961972,1744621840156,-500.0,0.00027397,2]
[357961975,1744621840166,-500.0,0.00027397,2]
[357961978,1744621840175,-500.0,0.00027397,2]
[357961981,1744621840186,-500.0,0.00027397,2]
[357961984,1744621840196,-500.0,0.00027397,2]
[357961987,1744621840206,-663.65,0.00027397,2]
[357961990,1744621840216,-500.0,0.00027397,2]
[357961993,1744621840225,-500.0,0.00027397,2]
[357961996,1744621840235,-500.0,0.00027397,2]
[357961999,1744621840245,-500.0,0.00027397,2]
[357962002,1744621840255,-500.0,0.00027397,2]
[357962005,1744621840264,-500.0,0.00027397,2]
[357962007,1744621840274,-500.0,0.00027397,2]
[357962010,1744621840284,-680.0,0.00027397,2]
[357962013,1744621840293,-500.0,0.00027397,2]
[357962016,1744621840303,-500.0,0.00027397,2]
[357962019,1744621840313,-500.0,0.00027397,2]
[357962022,1744621840322,-500.0,0.00027397,2]
[357962025,1744621840331,-500.0,0.00027397,2]
[357962028,1744621840341,-798.81,0.00027397,2]
[357962031,1744621840350,-500.0,0.00027397,2]
[357962034,1744621840360,-500.0,0.00027397,2]
[357962037,1744621840370,-500.0,0.00027397,2]
[357962040,1744621840379,-500.0,0.00027397,2]
[357962043,1744621840388,-500.0,0.00027397,2]
[357962045,1744621840398,-500.0,0.00027397,2]
[357962048,1744621840407,-1284.81,0.00027397,2]
[357962052,1744621840417,-500.0,0.00027397,2]
[357962055,1744621840426,-500.0,0.00027397,2]
[357962056,1744621840435,-500.0,0.00027397,2]
[357962058,1744621840444,-1223.32,0.00027397,2]
[357962060,1744621840454,-509.92826969,0.00027397,2]
[357962062,1744621840463,-500.0,0.00027397,2]
[357962065,1744621840473,-500.0,0.00027397,2]
[357962067,1744621840483,-512.51179047,0.00027397,2]
[357962070,1744621840492,-500.0,0.00027397,2]
[357962073,1744621840502,-500.0,0.00027397,2]
[357962076,1744621840510,-500.0,0.00027397,2]
[357962079,1744621840519,-500.0,0.00027397,2]
[357962082,1744621840528,-401.75066117,0.00027397,2]
[357962130,1744621840758,-98.24933883,0.00027397,2]
[357962133,1744621840767,-500.0,0.00027397,2]
[357962136,1744621840777,-1208.84,0.00027397,2]
[357962141,1744621840788,-10.66066046,0.00027397,2]
[357962144,1744621840800,-489.33933954,0.00027397,2]
[357962147,1744621840810,-500.0,0.00027397,2]
[357962150,1744621840819,-500.0,0.00027397,2]
[357962153,1744621840829,-500.0,0.00027397,2]
[357962156,1744621840838,-500.0,0.00027397,2]
[357962159,1744621840848,-112.48647913,0.00027397,2]
[357962162,1744621840859,-363.92582378,0.00027397,2]
[357962165,1744621840871,-23.58769709,0.00027397,2]
[357962169,1744621840882,-511.88,0.00027397,2]
[357962172,1744621840892,-277.59372855,0.00027397,2]
[357962176,1744621840904,-222.40627145,0.00027397,2]
[357962179,1744621840914,-300.30665737,0.00027397,2]
[357962182,1744621840926,-199.69334263,0.00027397,2]
[357962185,1744621840936,-255.7436005,0.00027397,2]
[357962829,1744621846486,-9130.70793326,0.00025,2]
[357962840,1744621846573,-5000.0,0.00025,2]
[357962843,1744621846593,-2356.251372,0.00025,2]
[357963358,1744622880158,201.14950577,0.00016,2]
[357963365,1744622915954,278.82347428,0.0001,2]
[357963366,1744622922439,619.29417659,9e-05,2]
[357963367,1744622926080,572.46624957,0.000149,2]
[357963368,1744622926539,1000.0,0.0001,2]
[357963413,1744623032356,-300.0,0.00024999,2]
[357963414,1744623032367,-300.0,0.00024999,2]
[357963415,1744623032376,-674.98242716,0.00025,2]
[357963416,1744623032388,-11696.16809343,0.00025,2]
[357963417,1744623032398,-441.86521456,0.000259,6]
[357963418,1744623032408,-500.0,0.00025999,2]
[357963419,1744623032417,-154.71305417,0.00025999,2]
[357963420,1744623032427,-156.31314247,0.00025999,2]
[357963421,1744623032436,-500.0,0.00025999,2]
[357963422,1744623032446,-189.08769628,0.00025999,2]
[357963423,1744623032455,-500.0,0.00025999,2]
[357963424,1744623032465,-265.05855903,0.00025999,2]
[357963425,1744623032475,-7757.0,0.00026,2]
[357963426,1744623032484,-441.86521453,0.00026383,6]
[357963427,1744623032493,-153.0,0.00026752,2]
[357963428,1744623032515,-174.1312848,0.00026752,2]
[357963429,1744623032525,-441.86521453,0.00026866,7]
[357963430,1744623032538,-784.0,0.00027,2]
[357963431,1744623032548,-420.0,0.00027082,2]
[357963432,1744623032558,-385.020729,0.00027123,4]
[357963433,1744623032569,-420.0,0.00027205,2]
[357963434,1744623032579,-152.0,0.0002723,2]
[357963435,1744623032589,-500.0,0.00027273,2]
[357963436,1744623032600,-552.10236871,0.00027273,2]
[357963437,1744623032610,-392.6,0.00027281,2]
[357963438,1744623032621,-478.39743759,0.00027286,2]
[357963439,1744623032631,-16104.07918711,0.00027287,2]
[357963440,1744623032645,-13167.53855973,0.00027287,2]
[357963441,1744623032666,-1273.32038068,0.00027287,2]
[357963442,1744623032679,-277614.58118348,0.00027287,2]
[357963443,1744623032690,-12580.13834199,0.00027297,2]
[357963444,1744623032699,-1905.00862249,0.00027297,3]
[357963445,1744623032710,-203818.00515333,0.00027297,2]
[357963463,1744623038421,-1574.03026762,0.00027297,2]
[357964316,1744624232591,-7255.9311429,0.00026012,2]
[357964317,1744624232602,-250.0,0.00026122,2]
[357964318,1744624232612,-325.6244295,0.00026303,2]
[357964319,1744624232622,-300.0,0.00026848,2]
[357964320,1744624232632,-300.0,0.00026848,2]
[357964321,1744624232641,-432.71533965,0.000269,7]
[357964322,1744624232651,-1000.0,0.00026944,2]
[357964323,1744624232660,-190.47,0.00027,4]
[357964324,1744624232670,-196.2984797,0.00027087,2]
[357964325,1744624232679,-1807.47656488,0.00027087,2]
[357964326,1744624232690,-288.7655467,0.00027123,4]
[357964327,1744624232700,-196.29847968,0.00027127,2]
[357964328,1744624232710,-500.0,0.00027165,2]
[357964329,1744624232720,-500.0,0.00027165,2]
[357964330,1744624232729,-500.0,0.00027165,2]
[357964331,1744624232739,-196.29847968,0.00027168,2]
[357964332,1744624232749,-158.31364942,0.00027173,2]
[357964333,1744624232758,-500.0,0.00027173,2]
[357964334,1744624232768,-500.0,0.00027173,2]
[357964335,1744624232778,-500.0,0.00027173,2]
[357964336,1744624232787,-500.0,0.00027173,2]
[357964337,1744624232797,-500.0,0.00027173,2]
[357964338,1744624232807,-500.0,0.00027173,2]
[357964339,1744624232816,-501.86117556,0.00027173,2]
[357964340,1744624232825,-500.0,0.00027173,2]
[357964341,1744624232836,-445.7496007,0.00027176,2]
[357964342,1744624232845,-29429.39027729,0.00027177,2]
[357964343,1744624232860,-278.80680054,0.00027177,2]
[357964359,1744624238690,-500.0,0.00027164,2]
[357964361,1744624238701,-498.86950075,0.00027164,2]
[357964367,1744624238747,-1.13049925,0.00027164,2]
[357964369,1744624238757,-51875.72375272,0.00027177,2]
[357964371,1744624238769,-66927.6673936,0.00027177,2]
[357964583,1744624240823,-446.17071677,0.00027177,2]
[357964586,1744624240836,-714.78080813,0.00027177,2]
[357964588,1744624240848,-720.14,0.00027177,2]
[357964592,1744624240884,-13998.73716667,0.00027177,2]
[357964595,1744624240897,-330.154,0.00027177,2]
[357964892,1744624243847,-874.31998001,0.00027177,2]
[357964893,1744624243859,-8487.08994294,0.00027177,2]
[357965145,1744624246730,-462.14600001,0.00027177,2]
[357965147,1744624246743,-410.71946917,0.00027177,2]
[357965150,1744624246763,-17953.0118458,0.00027177,2]
[357965163,1744624246872,-2760.38275018,0.00027177,2]
[357965258,1744625431637,-300.0,0.00024998,2]
[357965259,1744625431647,-500.0,0.00024999,2]
[357965260,1744625431656,-500.0,0.00024999,2]
[357965261,1744625431666,-473.50257178,0.00024999,2]
[357965262,1744625431677,-26.49742822,0.00024999,2]
[357965263,1744625431687,-500.0,0.00024999,2]
[357965264,1744625431697,-300.0,0.00024999,2]
[357965265,1744625431707,-23118.06,0.00025,10]
[357965266,1744625431716,-160.0,0.00025,10]
[357965267,1744625431725,-160.0,0.00025,10]
[357965268,1744625431734,-264.54581752,0.00025765,2]
[357965269,1744625431743,-418.29149514,0.000259,6]
[357965270,1744625431753,-8580.30287425,0.000259,2]
[357965271,1744625431762,-1000.0,0.00026008,2]
[357965272,1744625431772,-1581.54199427,0.00026034,2]
[357965273,1744625431781,-500.0,0.00026134,2]
[357965275,1744625431791,-418.2914949,0.00026383,6]
[357965277,1744625431800,-418.2914949,0.00026866,7]
[357965279,1744625431810,-196.29847968,0.00026956,2]
[357965280,1744625431819,-196.29847968,0.00026973,2]
[357965281,1744625431829,-312.02472049,0.00026989,2]
[357965282,1744625431838,-49430.972043,0.0002699,2]
[357965283,1744625431849,-102300.60533001,0.00027,7]
[357965284,1744625431858,-160.0,0.00027,7]
[357965285,1744625431871,-160.0,0.00027,7]
[357965286,1744625431880,-160.0,0.00027,7]
[357965288,1744625431890,-7689.05784866,0.00027016,2]
[357965290,1744625431900,-6290.06917099,0.00027046,2]
[357965292,1744625431911,-952.50431125,0.00027046,3]
[357965294,1744625431920,-49430.972043,0.00027046,2]
[357965296,1744625431930,-151.0,0.00027056,7]
[357965298,1744625431940,-197723.888172,0.00027057,2]